bitfinex/quotes_SOLUSD_20260309
["timestamp","ask_amount","ask_price","bid_price","bid_amount"]
[1773068945492,1.78917697,85.23,85.2,1e-08]
[1773068945694,1.78917697,85.227,85.2,1e-08]
[1773068945896,4.23257285,85.22,85.2,1e-08]
[1773068946097,1.78917697,85.209,85.2,1e-08]
[1773068946300,1.78917697,85.209,85.19,0.1]
[1773068947283,1.78917697,85.224,85.191,1.7868744]
[1773068947476,11.73309554,85.229,85.193,1.7868744]
[1773068948277,3.69383402,85.242,85.193,1.7868744]
[1773068948278,1.78917697,85.246,85.193,1.7868744]
[1773068948486,0.28432314,85.244,85.193,1.7868744]
[1773068948882,4.23257285,85.24,85.193,1.7868744]
[1773068949784,1.78917697,85.229,85.195,1.7868744]
[1773068952991,11.7332332,85.228,85.197,1.7868744]
[1773068953594,1.78917697,85.227,85.197,1.7868744]
[1773068953903,1.78917697,85.225,85.198,11.73736472]
[1773068954722,1.78917697,85.225,85.193,11.73804845]
[1773068954904,1.78917697,85.225,85.19,0.1]
[1773068954905,1.78917697,85.225,85.191,1.7868744]
[1773068955113,1.78917697,85.225,85.192,1.7868744]
[1773068955635,1.78917697,85.242,85.192,1.7868744]
[1773068955782,1.78917697,85.229,85.192,1.7868744]
[1773068955984,1.78917697,85.227,85.194,1.7868744]
[1773068957800,11.73350855,85.226,85.195,11.73777803]
[1773068957986,11.73350855,85.226,85.196,1.7868744]
[1773068958489,1.78917697,85.237,85.196,1.7868744]
[1773068959391,1.78917697,85.229,85.196,1.7868744]
[1773068960309,41.06631622,85.228,85.196,1.7868744]
[1773068960507,41.06631622,85.228,85.19,0.1]
[1773068960508,1.78917697,85.219,85.19,0.1]
[1773068961217,1.78917697,85.209,85.19,0.1]
[1773068961386,1.78917697,85.2,85.173,1.7868744]
[1773068961987,1.78917697,85.2,85.176,11.74027746]
[1773068962508,11.73722696,85.199,85.173,1.7868744]
[1773068962815,1.78917697,85.198,85.173,1.7868744]
[1773068962986,1.78917697,85.198,85.166,1.7868744]
[1773068963412,4.23426233,85.19,85.159,1.7868744]
[1773068963599,1.76910214,85.189,85.159,1.7868744]
[1773068963799,41.08029436,85.199,85.171,1.7868744]
[1773068963800,1.76910214,85.197,85.171,1.7868744]
[1773068964107,1.76910214,85.197,85.151,62.8]
[1773068964313,1.76910214,85.189,85.156,1.7868744]
[1773068965310,11.73874254,85.188,85.157,11.74301584]
[1773068966314,11.73874254,85.188,85.162,1.7868744]
[1773068967395,11.73722696,85.199,85.17,1.8868744]
[1773068967915,1.77027084,85.189,85.17,0.1]
[1773068969298,11.73874254,85.188,85.17,0.1]
[1773068969505,11.73874254,85.188,85.171,1.7868744]
[1773068970297,11.73874254,85.188,85.17,0.1]
[1773068970698,1.77142872,85.187,85.17,0.1]
[1773068971307,11.73874254,85.188,85.17,0.1]
[1773068971625,1.77180585,85.189,85.16,0.1]
[1773068971825,1.67180585,85.179,85.16,0.1]
[1773068972896,1.67180585,85.179,85.108,46.99874107]
[1773068972897,1.67217865,85.169,85.125,1.7868744]
[1773068973109,5.90644098,85.16,85.133,1.7868744]
[1773068973498,11.74274005,85.159,85.133,1.7868744]
[1773068973715,4.23426233,85.15,85.124,1.79356264]
[1773068973912,4.23426233,85.13,85.12,0.1]
[1773068974231,2.2016089,85.128,85.061,7.33325239]
[1773068974404,6.15154809,85.12,85.093,11.75178529]
[1773068975297,1.91728576,85.119,85.074,29.38599267]
[1773068975502,4.23426233,85.12,85.061,7.33325239]
[1773068975503,11.74839634,85.118,85.091,11.75212419]
[1773068975707,1.91728576,85.134,85.091,41.13243468]
[1773068975904,1.91728576,85.129,85.101,1.79356264]
[1773068976106,6.15154809,85.12,85.093,1.79356264]
[1773068976502,1.91728576,85.119,85.093,1.79356264]
[1773068976920,2.2016089,85.129,85.093,1.79356264]
[1773068977420,1.91728576,85.119,85.093,1.79356264]
[1773068978103,1.91728576,85.119,85.068,0.2999829]
[1773068978104,2.2016089,85.127,85.094,11.75170987]
[1773068978309,2.2016089,85.127,85.099,1.79356264]
[1773068978505,11.74701625,85.128,85.101,1.79356264]
[1773068978926,13.66430201,85.128,85.101,1.79356264]
[1773068979127,1.91728576,85.109,85.074,1.79356264]
[1773068980320,4.23426233,85.11,85.08,11.75352652]
[1773068980321,1.91728576,85.107,85.08,11.75352652]
[1773068980721,1.91728576,85.107,85.081,1.79356264]
[1773068981025,1.91728576,85.107,85.084,11.75301435]
[1773068981224,11.74977675,85.108,85.084,11.75301435]
[1773068981428,11.74977675,85.108,85.088,11.75243219]
[1773068981923,11.7490877,85.113,85.092,1.79356264]
[1773068982128,46.97711253,85.148,85.091,11.75212419]
[1773068982129,11.74707977,85.128,85.093,1.79356264]
[1773068982312,11.74707977,85.128,85.095,1.79356264]
[1773068984329,4.23426233,85.11,85.086,1.80200255]
[1773068984530,1.87965801,85.099,85.09,1e-08]
[1773068984763,1.87965801,85.099,85.068,2.10198545]
[1773068985610,1.87965801,85.099,85.068,0.2999829]
[1773068985810,1.87965801,85.089,85.068,0.2999829]
[1773068986413,1.87965801,85.097,85.068,13.85716575]
[1773068987134,1.87965801,85.097,85.069,1.80200255]
[1773068987432,15.44305857,85.112,85.069,1.80200255]
[1773068987433,1.87965801,85.108,85.069,1.80200255]
[1773068987636,11.37085492,85.1,85.069,1.80200255]
[1773068987837,1.87965801,85.099,85.069,1.80200255]
[1773068988736,1.87965801,85.097,85.068,0.2999829]
[1773068988920,1.87965801,85.097,85.068,2.10198545]
[1773068989634,11.75115748,85.098,85.069,1.80200255]
[1773068989841,1.87965801,85.089,85.068,0.2999829]
[1773068990136,1.87965801,85.089,85.069,11.75516345]
[1773068990328,1.87965801,85.097,85.07,1.80200255]
[1773068991034,1.87965801,85.095,85.07,1.80200255]
[1773068991238,1.87965801,85.095,85.068,0.2999829]
[1773068991454,1.87965801,85.089,85.051,1.80200255]
[1773068991730,0.28432314,85.094,85.03,0.2]
[1773068991731,1.87965801,85.079,85.042,1.80200255]
[1773068993139,1.87965801,85.049,84.979,1.80200255]
[1773068993336,0.28432314,85.058,84.993,1.80200255]
[1773068993337,1.87965801,85.038,84.993,1.80200255]
[1773068993521,11.37085492,85.03,84.993,1.80200255]
[1773068993839,11.37085492,85.02,84.993,1.80200255]
[1773068994133,1.87965801,84.98,84.94,0.1]
[1773068994434,11.37085492,84.98,84.941,11.77287764]
[1773068994641,13.25051293,84.97,84.94,0.1]
[1773068994934,1.87965801,84.969,84.94,0.1]
[1773068995115,11.76913661,84.968,84.94,0.1]
[1773068995729,1.87965801,84.967,84.94,0.1]
[1773068995927,11.76851259,84.973,84.941,1.80200255]
[1773068996238,1.87965801,84.972,84.941,1.80200255]
[1773068997117,11.76872109,84.971,84.942,13.57474159]
[1773068997314,11.76813429,84.976,84.943,1.80200255]
[1773068997522,2.16398115,84.989,84.943,1.80200255]
[1773068997715,1.87965801,84.989,84.943,1.80200255]
[1773068997939,1.87965801,84.979,84.943,1.80200255]
[1773068998244,1.87965801,84.989,84.943,1.80200255]
[1773068998421,11.76523135,84.997,84.943,1.80200255]
[1773068998626,1.87965801,84.996,84.943,1.80200255]
[1773068999136,11.76539796,84.995,84.945,1.80200255]
[1773068999720,1.87965801,84.994,84.945,1.80200255]
[1773068999918,11.37085492,84.99,84.945,1.80200255]
[1773069000125,1.87965801,84.989,84.945,1.80200255]
[1773069000330,1.87965801,84.979,84.945,1.80200255]
[1773069000924,11.37085492,84.99,84.945,1.80200255]
[1773069001239,1.87965801,84.999,84.947,1.80200255]
[1773069001425,1.87965801,84.998,84.947,1.80200255]
[1773069001621,1.87965801,84.998,84.948,0.28432314]
[1773069001834,13.2700222,85.017,84.953,1.80200255]
[1773069002120,13.2700222,85.017,84.969,1.80200255]
[1773069002341,1.87965801,85.039,84.979,1.80200255]
[1773069002545,1.87965801,85.048,84.987,1.80200255]
[1773069002725,11.37085492,85.02,84.963,1.80200255]
[1773069003047,1.87965801,85.041,84.98,0.28432314]
[1773069003237,3.69383402,85.062,84.984,41.18422291]
[1773069003238,54.40279914,85.04,84.984,41.18422291]
[1773069003538,1.87484169,85.039,84.985,1.86650838]
[1773069003841,3.69383402,85.053,84.991,1.86650838]
[1773069004046,1.87484169,85.052,84.993,1.86650838]
[1773069005039,1.87484169,85.052,84.997,1.86650838]
[1773069005347,1.87484169,85.052,84.984,194.43851685]
[1773069005348,1.87484169,85.052,85.003,1.86650838]
[1773069005939,11.75765129,85.051,85.005,1.86650838]
[1773069006123,1.87484169,85.05,85.005,1.86650838]
[1773069006743,1.87484169,85.06,85.005,1.86650838]
[1773069007038,1.87484169,85.06,85.007,1.86650838]
[1773069007337,1.87484169,85.059,85.013,1.86650838]
[1773069007746,11.75668367,85.058,85.014,11.76276848]
[1773069007926,1.87484169,85.057,85.015,1.86650838]
[1773069009626,1.87484169,85.057,84.977,1.17678901]
[1773069009627,1.87484169,85.039,85.007,11.7637371]
[1773069009930,1.87484169,85.037,85.008,11.76349346]
[1773069010748,1.87484169,85.029,84.976,1.86650838]
[1773069011045,41.1580705,85.038,84.982,1.86650838]
[1773069011046,1.87484169,85.019,84.982,1.86650838]
[1773069011421,13.24569661,85.01,84.982,1.86650838]
[1773069011824,1.87484169,85.007,84.974,11.76830559]
[1773069012729,1.87484169,85.007,84.974,13.63481397]
[1773069012944,11.76387549,85.006,84.974,13.63481397]
[1773069013128,11.76387549,85.006,84.975,1.86650838]
[1773069013325,1.87484169,85.005,84.966,1.86650838]
[1773069013546,1.87484169,84.999,84.958,1.86650838]
[1773069014047,41.17356421,85.006,84.957,11.77066045]
[1773069014048,11.76319342,85.011,84.96,1.86650838]
[1773069014225,1.87484169,85.022,84.966,1.86650838]
[1773069014428,1.87484169,85.022,84.972,1.86650838]
[1773069014626,2.81715422,85.04,84.985,0.28432314]
[1773069014830,11.75931043,85.039,84.992,1.86650838]
[1773069015046,11.75931043,85.039,84.994,1.86650838]
[1773069016348,1.87484169,85.038,84.988,11.7662451]
[1773069016646,1.87484169,85.029,84.988,11.7662451]
[1773069016831,1.87484169,85.038,84.989,1.86650838]
[1773069017345,13.63442869,85.037,84.991,1.86650838]
[1773069017644,13.63442869,85.037,84.99,41.18131544]
[1773069017645,13.63415212,85.039,84.993,1.86650838]
[1773069018146,1.87484169,85.038,84.993,1.86650838]
[1773069019044,2.81715422,85.04,84.99,41.18131544]
[1773069019045,2.81715422,85.04,84.999,1.86650838]
[1773069019245,14.57641349,85.04,85.003,1.86650838]
[1773069019429,1.87484169,85.039,85.003,1.86650838]
[1773069019828,1.87484169,85.039,85.002,11.76442907]
[1773069020650,1.87484169,85.039,85.003,1.86650838]
[1773069021126,11.37085492,85.03,84.985,11.76678237]
[1773069021330,1.87484169,85.028,84.986,1.86650838]
[1773069021825,1.87484169,85.019,84.986,1.86650838]
[1773069022281,1.87484169,85.019,84.984,11.76680445]
[1773069022647,1.87484169,85.019,84.985,1.86650838]
[1773069022949,41.1580705,85.038,84.985,1.86650838]
[1773069022950,11.75944871,85.038,84.985,1.86650838]
[1773069023253,11.75944871,85.038,84.995,1.86650838]
[1773069023641,13.6342904,85.038,84.995,1.86650838]
[1773069024160,11.75944871,85.038,84.995,1.86650838]
[1773069024355,1.87484169,85.037,84.995,1.86650838]
[1773069024544,2.81715422,85.04,84.997,1.86650838]
[1773069025644,2.81715422,85.04,84.999,1.86650838]
[1773069025967,2.81715422,85.04,85.001,1.86650838]
[1773069026258,2.81715422,85.04,84.998,41.17743946]
[1773069026259,2.81715422,85.04,85.003,1.86650838]
[1773069027552,2.81715422,85.04,84.998,41.17743946]
[1773069027553,2.81715422,85.04,85.005,1.86650838]
[1773069028335,2.47215037,100.51,85.004,41.17453295]
[1773069028336,1.87484169,85.074,85.006,1.17638754]
[1773069028539,1.87484169,85.074,85.007,1.76246685]
[1773069028936,1.87484169,85.069,85.009,1.76246685]
[1773069029541,11.38367218,85.08,85.011,1.76189835]
[1773069029542,1.87484169,85.067,85.011,1.76189835]
[1773069030355,1.87484169,85.067,85.011,1.47757521]
[1773069031059,41.14355574,85.068,85.011,1.47757521]
[1773069031060,1.87484169,85.059,85.011,1.47757521]
[1773069032137,1.87484169,85.058,85.013,1.47645771]
[1773069034257,1.7439089,85.056,85.015,1.47358606]
[1773069034464,1.7439089,85.075,85.017,1.47358606]
[1773069035666,7.27370473,85.094,85.024,1.90220395]
[1773069035834,7.27370473,85.094,85.036,1.90220395]
[1773069036040,11.75079228,85.101,85.036,1.90220395]
[1773069036250,29.37303328,85.113,85.046,1.90220395]
[1773069036462,11.74825832,85.119,85.06,1.90220395]
[1773069036639,11.74825832,85.119,85.072,1.90220395]
[1773069036964,41.11890412,85.119,85.072,1.90220395]
[1773069037280,41.11890412,85.119,85.063,1.90220395]
[1773069037663,1.7439089,85.118,85.063,1.90220395]
[1773069037864,1.7439089,85.109,85.054,1.90220395]
[1773069038057,1.7439089,85.099,85.045,1.90220395]
[1773069038461,11.38367218,85.1,85.047,1.90220395]
[1773069038462,1.7439089,85.097,85.047,1.90220395]
[1773069039864,1.7439089,85.087,85.048,11.75806603]
[1773069040064,1.7439089,85.087,85.048,13.66026998]
[1773069040264,1.7439089,85.087,85.049,1.90220395]
[1773069040466,1.7439089,85.102,85.049,1.90220395]
[1773069040963,1.7439089,85.1,85.049,1.90220395]
[1773069041151,1.7439089,85.1,85.048,41.15323111]
[1773069041152,1.7439089,85.1,85.053,1.90220395]
[1773069041953,1.7439089,85.098,85.055,1.90220395]
[1773069042961,11.7510194,85.099,85.055,1.90220395]
[1773069043478,1.7439089,85.098,85.055,1.90220395]
[1773069044470,3.69383402,85.122,85.044,0.28432314]
[1773069044471,1.7439089,85.135,85.058,1.90220395]
[1773069044672,11.7430122,85.158,85.062,3.97815716]
[1773069044871,1.7439089,85.157,85.088,1.90220395]
[1773069045074,1.7439089,85.157,85.096,1.90220395]
[1773069045270,1.7439089,85.139,85.086,1.90220395]
[1773069046661,1.7439089,85.137,85.088,1.90220395]
[1773069047155,1.80040624,85.129,85.088,1.90220395]
[1773069047777,1.80040624,85.137,85.088,1.90220395]
[1773069048475,1.80040624,85.137,85.09,1.87383394]
[1773069048679,1.80040624,85.149,85.094,1.87383394]
[1773069048973,1.80040624,85.148,85.106,1.87383394]
[1773069049555,1.80040624,85.152,85.11,1.87383394]
[1773069049752,11.74277467,85.159,85.116,1.87383394]
[1773069049960,1.80040624,85.158,85.106,1.87383394]
[1773069050357,1.80040624,85.139,85.095,1.87383394]
[1773069050559,1.80040624,85.137,85.099,1.87383394]
[1773069051172,1.80040624,85.137,85.089,11.75240042]
[1773069051373,1.80040624,85.129,85.089,11.75240042]
[1773069053182,1.80040624,85.127,85.089,1.87383394]
[1773069054260,13.54480122,85.147,85.095,1.87383394]
[1773069054473,13.54480122,85.147,85.097,1.87383394]
[1773069054692,1.80040624,85.146,85.097,1.87383394]
[1773069055267,1.80040624,85.144,85.099,1.87383394]
[1773069056486,1.80040624,85.144,85.087,0.28432314]
[1773069056487,1.80040624,85.142,85.1,11.75088131]
[1773069056674,1.80040624,85.139,85.1,11.75088131]
[1773069057685,1.80040624,85.139,85.101,1.87383394]
[1773069057981,11.74494673,85.143,85.101,1.87383394]
[1773069058167,1.80040624,85.142,85.101,1.87383394]
[1773069058578,1.80040624,85.14,85.102,11.75060515]
[1773069059484,1.80040624,85.14,85.103,1.87383394]
[1773069060979,41.10924487,85.139,85.104,11.750329]
[1773069061173,1.80040624,85.129,85.092,29.37996128]
[1773069061372,1.80040624,85.129,85.094,1.87383394]
[1773069061683,1.80040624,85.138,85.096,1.87383394]
[1773069063192,11.74577445,85.137,85.097,41.12953453]
[1773069063492,11.74577445,85.137,85.098,1.78137233]
[1773069063693,1.87677766,85.147,85.102,1.78137233]
[1773069063876,11.74453291,85.146,85.106,1.78137233]
[1773069066187,1.87677766,85.163,85.11,1.78137233]
[1773069066385,1.87677766,85.163,85.108,0.28432314]
[1773069066585,1.87677766,85.163,85.109,1.78137233]
[1773069066784,1.87677766,85.163,85.116,1.78137233]
[1773069067312,1.87677766,85.159,85.116,1.78137233]
[1773069067680,1.87677766,85.159,85.108,1.78137233]
[1773069068876,1.87677766,85.149,85.109,13.53101102]
[1773069069277,1.87677766,85.149,85.109,11.74963869]
[1773069071190,1.87677766,85.139,85.069,4.82477569]
[1773069071383,1.87677766,85.129,85.095,1.78137233]
[1773069072303,1.87677766,85.129,85.078,1.78137233]
[1773069072498,1.87677766,85.129,85.086,1.78137233]
[1773069072673,1.87677766,85.129,85.07,41.14258845]
[1773069072674,1.87677766,85.119,85.071,0.28432314]
[1773069072874,1.87677766,85.109,85.071,1.78137233]
[1773069073270,1.87677766,85.109,85.07,41.14258845]
[1773069073271,1.87677766,85.107,85.073,1.78137233]
[1773069075291,1.87677766,85.105,85.063,1.78137233]
[1773069075493,1.87677766,85.099,85.065,1.78137233]
[1773069076103,1.87677766,85.089,85.057,11.75669231]
[1773069076281,41.12518505,85.106,85.057,11.75669231]
[1773069076282,1.87677766,85.098,85.058,1.78137233]
[1773069077508,1.87677766,85.096,85.06,1.78137233]
[1773069077799,11.75129558,85.097,85.06,1.78137233]
[1773069078584,13.62709907,85.105,85.062,1.78137233]
[1773069078909,1.87677766,85.104,85.066,1.78137233]
[1773069079207,1.87677766,85.099,85.059,41.14790909]
[1773069079409,1.87677766,85.097,85.056,1.78137233]
[1773069081083,1.87677766,85.079,85.04,2.06569547]
[1773069081497,1.87677766,85.078,85.043,1.78137233]
[1773069081707,1.87677766,85.078,85.044,0.14216157]
[1773069081911,1.87677766,85.078,85.046,1.78137233]
[1773069083701,11.75405808,85.077,85.047,13.53957661]
[1773069083893,13.63083574,85.077,85.047,13.53957661]
[1773069084094,1.87677766,85.076,85.048,1.78137233]
[1773069084491,1.87677766,85.103,85.048,1.78137233]
[1773069084696,1.87677766,85.103,85.05,1.78137233]
[1773069084890,1.87677766,85.103,85.056,1.78137233]
[1773069085101,3.97815716,85.126,85.056,1.78137233]
[1773069085102,1.87677766,85.099,85.056,1.78137233]
[1773069085500,1.87677766,85.109,85.058,1.78137233]
[1773069085699,1.87677766,85.119,85.067,0.28432314]
[1773069086006,7.2578518,85.132,85.084,1.78137233]
[1773069086193,1.87677766,85.131,85.086,1.78137233]
[1773069086389,13.62337995,85.131,85.086,1.78137233]
[1773069086706,1.87677766,85.13,85.086,1.78137233]
[1773069087504,13.62365592,85.129,85.088,1.78137233]
[1773069088401,11.74687826,85.129,85.088,1.78137233]
[1773069088605,1.87677766,85.128,85.088,1.78137233]
[1773069089914,1.87677766,85.119,85.089,11.75240042]
[1773069090206,1.87677766,85.119,85.055,51.85278194]
[1773069090207,1.87677766,85.109,85.073,11.75461074]
[1773069090709,1.87677766,85.099,85.067,11.75536559]
[1773069091206,0.28432314,85.126,85.038,54.68137233]
[1773069091207,1.87677766,85.079,85.038,54.68137233]
[1773069091410,1.87677766,85.079,85.039,1.78137233]
[1773069091790,1.87677766,85.079,85.04,1.78137233]
[1773069091991,1.87677766,85.077,85.042,1.78137233]
[1773069094502,1.7809459,85.075,85.043,11.75875733]
[1773069094721,1.7809459,85.075,85.027,0.28432314]
[1773069094722,1.7809459,85.069,85.027,1.83071941]
[1773069097343,11.3657283,85.07,85.029,1.83071941]
[1773069097344,1.7809459,85.067,85.029,1.83071941]
[1773069097522,11.75530164,85.068,85.025,12.14250136]
[1773069097523,1.7809459,85.049,85.025,12.14250136]
[1773069097694,1.7809459,85.049,85.021,11.76166788]
[1773069098221,1.7809459,85.039,85.016,11.76247592]
[1773069098520,1.7809459,85.039,85.005,11.76401388]
[1773069098816,1.7809459,85.039,85.006,0.28432314]
[1773069098992,1.7809459,85.039,85.006,0.14216157]
[1773069099415,1.7809459,85.038,85.007,11.7637371]
[1773069099602,1.7809459,85.038,85.002,11.76433622]
[1773069100317,1.7809459,85.038,85.003,1.83071941]
[1773069101212,1.7809459,85.037,85.003,1.83071941]
[1773069101409,13.54067119,85.036,85.004,11.76415227]
[1773069101606,1.7809459,85.035,85.004,11.76415227]
[1773069102598,1.7809459,85.035,85.004,13.59487168]
[1773069102796,1.7809459,85.035,85.005,1.83071941]
[1773069103718,1.7809459,85.044,85.007,1.83071941]
[1773069103900,11.75875733,85.043,85.007,1.83071941]
[1773069104093,1.7809459,85.039,85.002,11.7644067]
[1773069105218,1.7809459,85.039,85.003,1.82867219]
[1773069105402,1.73166524,85.047,85.005,1.82867219]
[1773069105716,1.73166524,85.045,85.007,1.82867219]
[1773069106014,1.73166524,85.039,85.001,1.82867219]
[1773069106205,1.73166524,85.039,85.0,11.86457275]
[1773069108000,1.73166524,85.037,85.0,0.1]
[1773069109007,1.73166524,85.037,85.001,1.82867219]
[1773069109699,1.73166524,85.065,85.005,1.82867219]
[1773069109905,13.48751965,85.064,85.013,1.82867219]
[1773069110102,1.73166524,85.063,85.017,1.82867219]
[1773069110418,1.73166524,85.063,85.027,1.82867219]
[1773069112220,11.75516345,85.069,85.029,1.82867219]
[1773069112725,2.49066524,85.074,85.033,1.82867219]
[1773069113025,0.759,85.074,85.037,1.82867219]
[1773069113415,0.759,85.074,85.039,1.82867219]
[1773069113722,0.759,85.074,85.028,41.16291103]
[1773069113723,0.759,85.074,85.047,1.82867219]
[1773069113929,0.759,85.074,85.037,0.28432314]
[1773069113930,1.73166524,85.137,85.048,1.82867219]
[1773069114120,1.73166524,85.129,85.062,1.82867219]
[1773069114335,1.73166524,85.119,85.066,1.82867219]
[1773069114509,1.73166524,85.109,85.063,1.82867219]
[1773069114832,1.73166524,85.089,85.056,11.75696012]
[1773069115010,1.73166524,85.089,85.057,1.82867219]
[1773069115830,1.73166524,85.101,85.059,1.82867219]
[1773069116012,1.73166524,85.101,85.067,1.82867219]
[1773069116211,1.73166524,85.099,85.069,1.82867219]
[1773069116413,1.73166524,85.099,85.068,11.75530164]
[1773069117223,1.73166524,85.097,85.061,11.75626903]
[1773069118931,1.73166524,85.099,85.062,1.82867219]
[1773069119134,1.73166524,85.137,85.064,1.82867219]
[1773069119337,1.73166524,85.137,85.063,0.28432314]
[1773069119338,1.73166524,85.132,85.069,1.82867219]
[1773069119631,1.73166524,85.132,85.083,1.82867219]
[1773069119632,1.73166524,85.131,85.083,1.82867219]
[1773069119860,1.73166524,85.131,85.087,1.82867219]
[1773069120631,1.73166524,85.129,85.087,1.82867219]
[1773069121531,1.73166524,85.127,85.088,11.75253854]
[1773069122241,1.73166524,85.119,85.082,11.75324043]
[1773069122535,1.73166524,85.119,85.083,1.82867219]
[1773069123722,1.7254016,85.117,85.084,11.75309106]
[1773069123924,1.7254016,85.117,85.084,13.48608808]
[1773069124420,1.7254016,85.109,85.075,0.28432314]
[1773069124621,1.7254016,85.109,85.075,63.08432314]
[1773069124927,1.7254016,85.109,85.075,62.8]
[1773069125126,1.7254016,85.109,85.074,11.75440659]
[1773069125642,11.74977675,85.108,85.066,41.14447749]
[1773069125825,1.7254016,85.107,85.067,1.73299702]
[1773069127437,1.7254016,85.099,85.066,11.75557802]
[1773069127632,1.7254016,85.099,85.068,11.75530164]
[1773069127836,1.7254016,85.099,85.069,1.73299702]
[1773069128150,1.7254016,85.098,85.063,11.75597441]
[1773069129126,1.7254016,85.096,85.063,11.75597441]
[1773069129320,11.75129558,85.097,85.052,11.75751305]
[1773069129321,1.7254016,85.089,85.052,11.75751305]
[1773069129528,1.7254016,85.079,85.043,0.28432314]
[1773069129725,1.7254016,85.079,85.043,11.9009189]
[1773069129944,1.7254016,85.079,85.044,0.14216157]
[1773069130242,1.7254016,85.079,85.045,0.14216157]
[1773069130446,41.12953453,85.097,85.045,0.14216157]
[1773069130447,1.7254016,85.089,85.046,1.73299702]
[1773069131429,11.75179368,85.094,85.048,1.73299702]
[1773069131630,46.98081143,85.142,85.054,1.73299702]
[1773069131631,1.7254016,85.108,85.054,1.73299702]
[1773069131953,1.7254016,85.108,85.056,1.73299702]
[1773069132149,1.7254016,85.108,85.066,1.73299702]
[1773069132656,1.7254016,85.108,85.047,146.97755356]
[1773069132657,1.7254016,85.125,85.076,1.73299702]
[1773069133163,1.7254016,85.119,85.076,1.73299702]
[1773069133338,11.74839634,85.118,85.077,41.1392033]
[1773069133539,1.7254016,85.117,85.078,1.73299702]
[1773069135653,1.7254016,85.126,85.086,1.73299702]
[1773069136250,1.7254016,85.119,85.079,11.75378177]
[1773069136451,1.7254016,85.119,85.079,13.48677879]
[1773069136635,1.7254016,85.119,85.08,1.73299702]
[1773069137652,1.7254016,85.117,85.081,11.75350548]
[1773069137953,1.7254016,85.109,85.072,11.75474891]
[1773069138529,1.7254016,85.089,85.046,1.73299702]
[1773069138755,1.7254016,85.089,85.048,1.73299702]
[1773069138937,1.7254016,85.089,85.056,1.73299702]
[1773069139138,1.7254016,85.098,85.056,1.73299702]
[1773069139333,1.7254016,85.109,85.059,0.14216157]
[1773069139539,1.7254016,85.109,85.067,1.73299702]
[1773069139747,1.7254016,85.109,85.071,1.73299702]
[1773069139935,1.7254016,85.109,85.077,1.73299702]
[1773069140137,11.74977675,85.108,85.077,1.73299702]
[1773069140353,13.47517835,85.108,85.077,1.73299702]
[1773069140853,1.7254016,85.108,85.077,1.73299702]
[1773069141652,11.74916388,85.113,85.079,1.73299702]
[1773069141955,11.74841932,85.118,85.079,1.73299702]
[1773069142546,1.7254016,85.117,85.079,1.73299702]
[1773069143849,1.7254016,85.117,85.081,1.73299702]
[1773069144050,46.95446036,85.189,85.087,1.73299702]
[1773069144051,1.7254016,85.127,85.087,1.73299702]
[1773069145059,1.7254016,85.109,85.08,11.75364362]
[1773069145760,1.7254016,85.109,85.076,13.48711746]
[1773069146743,29.36719566,85.129,85.077,1.73299702]
[1773069146744,1.7254016,85.108,85.077,1.73299702]
[1773069146954,1.7254016,85.133,85.081,1.73299702]
[1773069147256,11.3657283,85.14,85.087,1.73299702]
[1773069147257,1.7254016,85.13,85.087,1.73299702]
[1773069148458,1.7254016,85.129,85.087,1.73299702]
[1773069148854,3.97815716,85.156,85.088,11.75253854]
[1773069148855,1.7254016,85.119,85.088,11.75253854]
[1773069149356,3.97815716,85.156,85.088,11.75253854]
[1773069149357,11.36171238,85.16,85.091,0.28432314]
[1773069149542,11.74274005,85.159,85.101,0.28432314]
[1773069149742,11.74274005,85.159,85.088,135.15419329]
[1773069149743,11.74274005,85.159,85.116,1.73299702]
[1773069150745,11.74136129,85.169,85.116,1.73299702]
[1773069151044,11.74136129,85.169,85.089,1.17524004]
[1773069151045,11.36171238,85.15,85.118,1.73299702]
[1773069151367,0.2,85.24,85.118,1.73299702]
[1773069151541,11.73171904,85.239,85.183,27.08123083]
[1773069151741,11.73171904,85.239,85.186,0.28432314]
[1773069152052,41.06101666,85.239,85.185,0.28432314]
[1773069152243,11.73171904,85.239,85.185,2.01732016]
[1773069152562,41.06101666,85.239,85.185,2.01732016]
[1773069152966,11.36171238,85.23,85.187,2.01732016]
[1773069153261,11.36171238,85.21,85.164,1.7557984]
[1773069153467,11.36171238,85.21,85.167,0.28432314]
[1773069153664,1.73736161,85.209,85.167,0.28432314]
[1773069154051,1.73736161,85.209,85.167,2.04012154]
[1773069155260,13.47334884,85.208,85.169,1.7557984]
[1773069156275,13.09907399,85.19,85.16,1.7557984]
[1773069156444,1.73736161,85.19,85.16,1.7557984]
[1773069157252,11.73860474,85.189,85.16,1.7557984]
[1773069157640,1.73736161,85.188,85.16,1.7557984]
[1773069157846,1.73736161,85.179,85.142,1.7557984]
[1773069158449,1.73736161,85.179,85.14,11.74536058]
[1773069158450,1.73736161,85.198,85.144,1.7557984]
[1773069158659,1.73736161,85.198,85.148,1.7557984]
[1773069159466,11.73750249,85.197,85.15,1.7557984]
[1773069159771,1.73736161,85.196,85.15,1.7557984]
[1773069160183,11.73750249,85.197,85.156,1.7557984]